fUSD/lending_fUSD_20240105
["ID","MTS","AMOUNT","RATE_DAILY","PERIOD"]
[310271886,1704431438200,-150.0,0.00022999,2]
[310271887,1704431438211,-150.0,0.00022999,2]
[310271888,1704431438220,-150.0,0.00022999,2]
[310271889,1704431438231,-150.0,0.00022999,2]
[310271890,1704431438240,-150.0,0.00022999,2]
[310271891,1704431438250,-150.0,0.00022999,2]
[310271892,1704431438259,-150.0,0.00022999,2]
[310271893,1704431438268,-150.0,0.00022999,2]
[310271894,1704431438278,-150.0,0.00022999,2]
[310271895,1704431438288,-150.0,0.00022999,2]
[310271896,1704431438327,-150.0,0.00022999,2]
[310271897,1704431438336,-5068973.12597346,0.00023,2]
[310271898,1704431438365,-685702.55390616,0.00023,2]
[310271899,1704431438377,-578914.19288253,0.00023,2]
[310271907,1704431440108,-776.99749995,0.00023,2]
[310271909,1704431440163,-1000.0,0.00023,2]
[310271913,1704431442880,-1412.18415497,0.00023,2]
[310271914,1704431442917,-72865.75393681,0.00023,2]
[310271915,1704431442957,-664.00152642,0.00023,2]
[310271927,1704431445551,-6939.74377319,0.00023,2]
[310271930,1704431445609,-469.58653527,0.00023,2]
[310271933,1704431445628,-3593.39693038,0.00023,2]
[310271936,1704431445645,-1326.5773138,0.00023,2]
[310271938,1704431445657,-373.41198185,0.00023,2]
[310271939,1704431445727,-2861.5891611,0.00023,2]
[310271940,1704431445739,-346.27282667,0.00023,2]
[310271941,1704431445793,-1757.56113422,0.00023,2]
[310271942,1704431445805,-3192.38206062,0.00023,2]
[310271943,1704431445816,-15324.49510145,0.00023,2]
[310271944,1704431445828,-893.81106938,0.00023,2]
[310271945,1704431445848,-897.47245574,0.00023,2]
[310271946,1704431445928,-12795.37589689,0.00023,2]
[310271947,1704431445949,-1314.53089646,0.00023,2]
[310271949,1704431973258,437.31,0.00020933,2]
[310271951,1704432149871,1442.58832286,0.00021664,2]
[310271952,1704432150238,1442.58832286,0.00022027,2]
[310271953,1704432150555,1442.58832286,0.00022344,2]
[310271954,1704432209567,440.75,0.0002219,2]
[310271955,1704432211018,223.7,0.0002219,2]
[310271956,1704432279581,1442.58832287,0.0002222,2]
[310271957,1704432280348,582.16,0.00022122,2]
[310271958,1704432283492,601.6,0.0002227,2]
[310271959,1704432400983,1442.58832287,0.00022384,2]
[310271960,1704432405621,1276.81,0.00022448,2]
[310271961,1704432417596,415.44,0.00020352,2]
[310271962,1704432465748,15667.99021026,0.0002227,2]
[310271963,1704432467008,620.48589227,0.00022077,2]
[310271964,1704432467683,844.6351422,0.0002227,2]
[310271965,1704432468077,152.70627102,0.00022,2]
[310271966,1704432468249,283.06198934,0.0002227,2]
[310271967,1704432468314,204.35528503,0.0002227,2]
[310271968,1704432469076,228.46234964,0.00020352,2]
[310271969,1704432470087,155.0,0.0002227,2]
[310271970,1704432470324,5722.23706229,0.00020352,2]
[310271971,1704432470404,361.21687776,0.00018398,2]
[310271972,1704432470507,939.81007395,0.00022077,2]
[310271973,1704432470764,1595.66540004,0.00017816,2]
[310271974,1704432470793,157.06753871,0.00020352,2]
[310271975,1704432472067,346.37004029,0.00020352,2]
[310271976,1704432472252,1097.47971308,0.0002227,2]
[310271977,1704432473182,542.81430331,0.00020352,2]
[310271978,1704432473479,293.90565243,0.00020352,2]
[310271979,1704432473838,402.90127337,0.00019741,2]
[310271980,1704432474724,283.02458478,0.00020352,2]
[310271981,1704432475767,2469.16985577,0.00022307,2]
[310271982,1704432475871,2870.8125,0.00022415,2]
[310271983,1704432475945,1403.09102513,0.00020352,5]
[310271984,1704432476676,646.23951764,0.00020352,2]
[310271985,1704432476983,853.60904369,0.00020352,2]
[310271986,1704432477268,18922.07955706,0.00020352,2]
[310271987,1704432478134,155.28075946,0.00020352,2]
[310271988,1704432478322,883.00753991,0.00020352,2]
[310271989,1704432478971,6068.96581964,0.00020352,2]
[310271990,1704432484995,626.62057973,0.00022077,2]
[310271991,1704432487689,844.6351422,0.00020352,2]
[310271992,1704432487716,15667.99021026,0.00020352,2]
[310271993,1704432488728,1595.66540004,0.00016282,2]
[310271994,1704432493759,856.53983852,0.00022307,2]
[310271995,1704432496791,5592.08104991,0.00020352,2]
[310271996,1704432497251,10345.41926267,0.00020352,2]
[310271997,1704432498317,883.00753991,0.00020352,2]
[310271998,1704432503694,847.01109275,0.00020352,2]
[310271999,1704432505695,805.44775566,0.00020352,2]
[310272000,1704432506877,5954.65,0.00021896,2]
[310272001,1704432510736,1593.65713968,0.00016282,2]
[310272002,1704432518322,259.42717915,0.00020352,2]
[310272003,1704432527903,834.44,0.00021968,2]
[310272004,1704432545668,157.63053597,0.00022415,2]
[310272005,1704432545836,161.66,0.00022221,2]
[310272006,1704432549552,175.81,0.00022,2]
[310272007,1704432605331,233.37,0.00021896,2]
[310272012,1704432631760,-211.10592611,0.00022501,2]
[310272013,1704432631770,-220.46785821,0.00022502,2]
[310272014,1704432631779,-7.2366953,0.00022502,2]
[310272015,1704432631790,-142.7633047,0.00022502,2]
[310272016,1704432631799,-333.87017214,0.00022514,2]
[310272017,1704432631869,-1572.09871997,0.00022514,2]
[310272018,1704432631882,-1232.00144346,0.00022514,2]
[310272019,1704432631980,-539.42300977,0.00022514,2]
[310272026,1704432638283,-468.73548557,0.00022514,2]
[310272027,1704432638295,-972.6716777,0.00022514,2]
[310272028,1704432638312,-559.77437565,0.00022514,2]
[310272029,1704432638322,-1024.13887096,0.00022515,2]
[310272030,1704432638331,-300.0,0.00022515,2]
[310272031,1704432638341,-150.0,0.00022515,2]
[310272032,1704432638350,-1367.57827766,0.00022515,2]
[310272033,1704432638360,-39378.38614759,0.00022516,2]
[310272034,1704432638389,-261.6596807,0.00022516,2]
[310272035,1704432638402,-7622.46820683,0.00022516,2]
[310272036,1704432638413,-351.14,0.00022548,2]
[310272037,1704432638423,-499.99,0.00022613,2]
[310272038,1704432638433,-415.44,0.00022616,2]
[310272039,1704432638442,-1234.18573038,0.00022669,2]
[310272040,1704432638451,-173.63028057,0.0002267,2]
[310272041,1704432638461,-262.32,0.0002267,2]
[310272042,1704432638471,-150.4869536,0.00022737,2]
[310272044,1704432638481,-202.0,0.00022756,2]
[310272046,1704432638491,-208.99998,0.00022756,2]
[310272048,1704432638500,-155.0,0.00022767,2]
[310272050,1704432638510,-52840.0,0.00022769,2]
[310272052,1704432638519,-7035.35108356,0.0002277,2]
[310272054,1704432638528,-3737.38599435,0.0002277,2]
[310272056,1704432638537,-173.63028056,0.00022785,2]
[310272058,1704432638546,-155.0,0.000228,2]
[310272060,1704432638555,-1032.36054589,0.00022897,2]
[310272062,1704432638564,-9526.49972497,0.00022897,2]
[310272064,1704432638573,-500.0,0.00022899,2]
[310272066,1704432638582,-10329.3427,0.00022899,2]
[310272068,1704432638591,-5028.1794,0.000229,2]
[310272069,1704432638600,-182.19298665,0.000229,2]
[310272071,1704432638610,-179.09451002,0.000229,2]
[310272074,1704432638619,-8000.73,0.000229,2]
[310272076,1704432638631,-157.63053597,0.000229,2]
[310272078,1704432638640,-173.63028056,0.000229,2]
[310272080,1704432638649,-370.2748043,0.000229,2]
[310272082,1704432638658,-834.44,0.00022947,2]
[310272083,1704432638669,-151.16726685,0.00022989,2]
[310272086,1704432638680,-233.37,0.00022991,2]
[310272088,1704432638689,-588.83361847,0.00022997,2]
[310272090,1704432638698,-240.63660894,0.00022997,2]
[310272092,1704432638707,-161.556012,0.00022997,2]
[310272094,1704432638717,-156.24525938,0.00022997,2]
[310272096,1704432638730,-155.45248469,0.00022997,2]
[310272098,1704432638741,-2148.91640678,0.00022997,2]
[310272100,1704432638755,-155.77765896,0.00022997,2]
[310272102,1704432638765,-3622.3516387,0.00022997,2]
[310272104,1704432638774,-268.16199084,0.00022997,2]
[310272106,1704432638783,-247.9000583,0.00022997,2]
[310272108,1704432638792,-155.60221481,0.00022997,2]
[310272110,1704432638801,-5329.4952476,0.00022997,2]
[310272112,1704432638810,-702.09172964,0.00022997,2]
[310272114,1704432638820,-182.83552799,0.00022997,2]
[310272116,1704432638829,-155.89157788,0.00022997,2]
[310272118,1704432638837,-226.77425392,0.00022997,2]
[310272120,1704432638846,-248.76340651,0.00022997,2]
[310272122,1704432638855,-164.15153233,0.00022997,2]
[310272124,1704432638864,-197.12332472,0.00022997,2]
[310272126,1704432638873,-155.95348117,0.00022997,2]
[310272128,1704432638881,-255.42,0.00022997,2]
[310272130,1704432638891,-284.55378193,0.00022997,2]
[310272132,1704432638900,-526.72345828,0.00022997,2]
[310272134,1704432638909,-550.29289422,0.00022997,2]
[310272136,1704432638919,-172.15834386,0.00022997,2]
[310272138,1704432638928,-155.50479107,0.00022997,2]
[310272140,1704432638937,-161.71494588,0.00022997,2]
[310272142,1704432638947,-1058.70930274,0.00022997,2]
[310272144,1704432638956,-265.83048105,0.00022997,2]
[310272146,1704432638965,-375.62832923,0.00022997,2]
[310272148,1704432638974,-801.45854925,0.00022997,2]
[310272150,1704432638983,-164.7616955,0.00022998,2]
[310272152,1704432638992,-1020.98738794,0.00022998,2]
[310272154,1704432639001,-4611.87269733,0.00022998,2]
[310272156,1704432639010,-156.13749558,0.00022998,2]
[310272158,1704432639022,-279.53720518,0.00022998,2]
[310272160,1704432639031,-249.39139602,0.00022998,2]
[310272162,1704432639040,-1387.13372535,0.00022998,2]
[310272163,1704432639049,-155.43902243,0.00022998,2]
[310272165,1704432639058,-273.37604111,0.00022998,2]
[310272167,1704432639067,-742.32650074,0.00022998,2]
[310272169,1704432639076,-158.25999424,0.00022998,2]
[310272171,1704432639085,-187.92884479,0.00022998,2]
[310272172,1704432639094,-3791.06972333,0.00022998,4]
[310272174,1704432639103,-236.80896425,0.00022998,2]
[310272176,1704432639113,-155.93341944,0.00022998,2]
[310272178,1704432639122,-155.61427239,0.00022998,2]
[310272180,1704432639131,-290.97925018,0.00022998,2]
[310272182,1704432639140,-990.53032242,0.00022998,2]
[310272184,1704432639149,-1054263.9214738,0.00022999,2]
[310272186,1704432639159,-150.0,0.00022999,2]
[310272188,1704432639168,-2309272.46616216,0.00023,2]
[310272190,1704432639177,-931.13114601,0.00023,2]
[310272192,1704432639187,-2629372.44442345,0.00023,2]
[310272194,1704432639199,-685702.55390616,0.00023,2]
[310272196,1704432639211,-578914.19288253,0.00023,2]
[310272199,1704432639232,-492.46,0.00023,2]
[310272202,1704432639243,-704.13939175,0.00023,2]
[310272204,1704432639259,-5821.03486901,0.00023,2]
[310272206,1704432639270,-516.64140038,0.00023,2]
[310272208,1704432639281,-347.70151886,0.00023,2]
[310272214,1704432639323,-876.30395543,0.00023,2]
[310272305,1704432640403,-41335.1235518,0.00023,2]
[310272307,1704432640415,-1837.11987828,0.00023,2]
[310272341,1704432641191,-1679.07687545,0.00023,2]
[310272342,1704432642734,-223.13908925,0.00022999,2]
[310272344,1704432642743,-21283.52431943,0.00023,2]
[310272349,1704432642790,-500.0,0.00023,2]
[310272350,1704432642906,-5375.34531463,0.00023,2]
[310272351,1704432642917,-7468.37325249,0.00023,2]
[310272352,1704432643018,-373.45767937,0.00023,2]
[310272353,1704432643030,-592.53143083,0.00023,2]
[310272354,1704432643077,-523.7000001,0.00023,2]
[310272355,1704432643088,-471.06540919,0.00023,2]
[310272356,1704432643100,-1137.98618899,0.00023,2]
[310272357,1704432643111,-2659.56381071,0.00023,2]
[310272358,1704432643122,-1051.547,0.00023,2]
[310272359,1704432643579,150.0,0.00022,2]
[310272360,1704432644652,1442.58832286,0.00022497,2]
[310272367,1704432647789,-211.62734656,0.00022999,2]
[310272368,1704432647799,-564.72265344,0.00023,2]
[310272370,1704432814354,167.78,0.00020358,2]
[310272371,1704432886983,503.17839111,0.000192,2]
[310272372,1704433113927,202.0,0.00022041,2]
[310272373,1704433256460,167.78,0.00020312,2]
[310272374,1704433473864,202.0,0.00022396,2]
[310272375,1704433490386,545.35,0.000225,2]
[310272381,1704433831924,-418.39436793,0.00022579,2]
[310272382,1704433831934,-216.3980758,0.0002258,2]
[310272383,1704433831944,-86.27342068,0.00022581,2]
[310272384,1704433831957,-71.44713204,0.00022581,2]
[310272385,1704433831966,-286.01658209,0.00022679,2]
[310272386,1704433831977,-834.26875927,0.00022679,2]
[310272391,1704433832389,-1876.46363291,0.00022679,2]
[310272392,1704433832399,-202.0,0.00022789,2]
[310272394,1704433832408,-155.6011966,0.000228,2]
[310272396,1704433832417,-4362.87392862,0.00022899,2]
[310272399,1704433832429,-1215.96501367,0.00022899,2]
[310272401,1704433832441,-1916.98708128,0.00022899,2]
[310272403,1704433832453,-287.12623445,0.00022899,2]
[310272405,1704433832464,-350.9616348,0.00022899,2]
[310272407,1704433832477,-763.01283785,0.00022899,2]
[310272411,1704433832505,-2588.60706725,0.00022899,2]
[310272414,1704433832532,-572.01503807,0.00022899,2]
[310272417,1704433832545,-355.72796401,0.00022899,2]
[310272419,1704433832555,-312.13346969,0.00022899,2]
[310272421,1704433832566,-501.30695603,0.00022899,2]
[310272423,1704433832577,-619.6575507,0.00022899,2]
[310272424,1704433832586,-1433.09797642,0.00022899,2]
[310272426,1704433832596,-294.70063025,0.000229,2]
[310272427,1704433832605,-182.19298664,0.000229,2]
[310272428,1704433832614,-538.7064687,0.000229,2]
[310272429,1704433832624,-220.18963027,0.00022997,2]
[310272431,1704433838248,-365.0693935,0.00022997,2]
[310272432,1704433838258,-230.27417744,0.00022997,2]
[310272433,1704433838267,-226.59708458,0.00022997,2]
[310272434,1704433838277,-759.85151872,0.00022997,2]
[310272435,1704433838286,-221.76665104,0.00022998,2]
[310272436,1704433838297,-2876.66433714,0.00022999,2]
[310272437,1704433838307,-681022.33074374,0.00022999,2]
[310272438,1704433838319,-373241.59073006,0.00022999,2]
[310272439,1704433838329,-205672.60215247,0.00023,2]
[310272440,1704433838346,-3130.34992841,0.00023,2]
[310272441,1704433838361,-344.76991049,0.00023,2]
[310272443,1704433840626,-456.87499995,0.00023,2]
[310272456,1704433842930,-1040.05611381,0.00023,2]
[310272459,1704433842964,-6571.85799132,0.00023,2]
[310272460,1704433842976,-17642.26761121,0.00023,2]
[310272461,1704433843022,-275.16935946,0.00023,2]
[310272462,1704433843189,-418.39436793,0.00022999,2]
[310272463,1704433843199,-461004.77845997,0.00023,2]
[310272464,1704433843212,-500.0,0.00023,2]
[310272465,1704433843223,-1061.9974405,0.00023,2]
[310272466,1704433843232,-2000.0,0.00023,2]
[310272467,1704433843241,-200.0,0.00023,2]
[310272468,1704433843250,-449.72644301,0.00023,2]
[310272469,1704433843258,-200.0,0.00023,2]
[310272470,1704433843268,-150.99,0.00023,2]
[310272471,1704433843278,-1234.1857304,0.00023116,2]
[310272472,1704433843287,-2000.0,0.0002323,2]
[310272473,1704433843297,-200.0,0.0002323,2]
[310272474,1704433843306,-200.0,0.0002323,2]
[310272475,1704433843315,-1442.58832288,0.00023285,2]
[310272476,1704433843324,-2000.0,0.00023462,2]
[310272477,1704433843345,-200.0,0.00023462,2]
[310272478,1704433843357,-451.77,0.00023514,2]
[310272479,1704433843366,-211.49,0.00023558,2]
[310272480,1704433843375,-161.66,0.00023614,2]
[310272481,1704433843385,-792.38289812,0.00023697,2]
[310272482,1704433843395,-200.0,0.00023697,2]
[310272483,1704433843404,-200.0,0.00023934,2]
[310272484,1704433843414,-202.0,0.0002422,4]
[310272486,1704433843424,-294.70063015,0.00024255,2]
[310272487,1704433843434,-155.30294817,0.00025,2]
[310272488,1704433843443,-304.00013169,0.00025,2]
[310272489,1704433843453,-1580.1889945,0.00025,2]
[310272490,1704433843463,-430.0,0.00025,2]
[310272491,1704433843473,-202.29826383,0.00025,2]
[310272492,1704433843483,-161.66,0.00025008,2]
[310272493,1704433843493,-624.37927947,0.0002509,2]
[310272494,1704433843502,-523.0,0.00025233,2]
[310272495,1704433843512,-153.97,0.00025288,2]
[310272496,1704433843521,-166.74,0.00025345,2]
[310272497,1704433843531,-481.28,0.00025348,2]
[310272498,1704433843541,-175.02,0.00025352,2]
[310272499,1704433843551,-250.0,0.00025355,2]
[310272500,1704433843559,-229.13,0.00025369,2]
[310272501,1704433843570,-518.72,0.00025412,2]
[310272502,1704433843579,-158.18,0.00025586,2]
[310272503,1704433843589,-294.70063015,0.00025609,2]
[310272504,1704433843599,-202.0,0.00025651,6]
[310272505,1704433843609,-451.77,0.00025778,2]
[310272506,1704433843618,-153.97,0.0002592,2]
[310272507,1704433843628,-150.0,0.00026079,2]
[310272508,1704433843639,-1021.0,0.000263,2]
[310272509,1704433843648,-161.66,0.00026401,2]
[310272510,1704433843658,-153.97,0.00026552,2]
[310272511,1704433843668,-2552.24114989,0.00026574,5]
[310272512,1704433843677,-26342.0,0.000267,2]
[310272513,1704433843686,-2299.0,0.000267,2]
[310272514,1704433843696,-294.70063015,0.00026964,2]
[310272515,1704433843706,-219.41014486,0.00027,2]
[310272516,1704433843715,-250.0,0.00027,3]
[310272517,1704433843729,-175.02,0.00027042,2]
[310272518,1704433843739,-202.0,0.00027082,8]
[310272519,1704433843748,-157.57,0.00027141,2]
[310272520,1704433843757,-153.97,0.00027184,2]
[310272521,1704433843767,-1688.0,0.00027367,2]
[310272522,1704433843777,-1688.0,0.00027373,2]
[310272523,1704433843786,-1688.0,0.00027373,2]
[310272524,1704433843796,-1688.0,0.00027374,2]
[310272525,1704433843807,-1687.99,0.00027378,2]
[310272526,1704433843816,-1688.0,0.00027379,2]
[310272527,1704433843826,-1688.0,0.0002738,2]
[310272528,1704433843835,-1688.0,0.00027382,2]
[310272529,1704433843845,-1688.0,0.00027384,2]
[310272530,1704433843859,-1688.0,0.00027385,2]
[310272531,1704433843869,-1688.0,0.00027385,2]
[310272532,1704433843879,-1688.0,0.00027389,2]
[310272533,1704433843889,-1688.0,0.00027389,2]
[310272534,1704433843899,-200.0,0.00027397,5]
[310272535,1704433843909,-155.0,0.00027397,2]
[310272536,1704433843918,-250.0,0.00027397,2]
[310272537,1704433843929,-186.63,0.00027397,2]
[310272538,1704433843938,-500.0,0.000274,2]
[310272539,1704433843948,-1688.0,0.00027405,2]
[310272540,1704433843958,-1688.0,0.00027406,2]
[310272541,1704433843968,-1688.0,0.00027407,2]
[310272542,1704433843978,-1390.91,0.00027416,2]
[310272543,1704433843987,-157.57,0.00027442,2]
[310272544,1704433843997,-604.21721138,0.000275,4]
[310272545,1704433844007,-157.57,0.00027744,2]
[310272546,1704433844016,-153.97,0.00027816,2]
[310272547,1704433844025,-326.66607586,0.00027945,5]
[310272548,1704433844035,-1458.58,0.00027945,2]
[310272549,1704433844044,-1562.0,0.00027945,2]
[310272550,1704433844054,-686.69000892,0.00028,2]
[310272551,1704433844063,-451.77,0.00028041,2]
[310272552,1704433844073,-157.57,0.00028045,2]
[310272553,1704433844082,-294.70063015,0.00028318,2]
[310272554,1704433844091,-157.57,0.00028347,2]
[310272555,1704433844101,-116349.0596311,0.00028509,2]
[310272556,1704433844110,-202.0,0.00028514,10]
[310272557,1704433844120,-481.28,0.00028516,2]
[310272558,1704433844130,-518.72,0.00028589,2]
[310272559,1704433844140,-709.97,0.00028634,2]
[310272560,1704433844149,-157.57,0.00028648,2]
[310272561,1704433844159,-175.02,0.00028732,2]
[310272562,1704433844171,-155.0,0.00028767,2]
[310272563,1704433844180,-1352.0,0.00028778,2]
[310272564,1704433844190,-772.304,0.00028778,2]
[310272565,1704433844199,-833.0,0.00028778,2]
[310272566,1704433844209,-1234.0,0.00028778,2]
[310272567,1704433844222,-1269.394,0.00028778,2]
[310272568,1704433844231,-1927.0,0.00028778,2]
[310272569,1704433844241,-1137.0,0.00028778,2]
[310272570,1704433844251,-2280.003,0.00028778,2]
[310272571,1704433844261,-667.494,0.00028778,2]
[310272572,1704433844270,-19644.0,0.00028778,2]
[310272573,1704433844279,-150.0,0.00028778,2]
[310272574,1704433844287,-157.57,0.0002895,2]
[310272575,1704433844297,-129007.34190617,0.00029,2]
[310272576,1704433844307,-663.78820718,0.00029,10]
[310272577,1704433844317,-300.0,0.00029,3]
[310272578,1704433844326,-157.57,0.00029252,2]
[310272579,1704433844336,-2093.135182,0.000295,2]
[310272580,1704433844345,-163.73,0.000295,2]
[310272581,1704433844355,-157.57,0.00029553,2]
[310272582,1704433844369,-166.74,0.00029569,2]
[310272583,1704433844379,-2300.49008254,0.0002964,2]
[310272584,1704433844388,-150.01,0.00029641,2]
[310272585,1704433844398,-3286.93466783,0.00029641,2]
[310272586,1704433844408,-730.37,0.00029642,2]
[310272587,1704433844417,-14083.078743,0.00029652,2]
[310272588,1704433844427,-36873.46832769,0.00029652,2]
[310272589,1704433844447,-306.0,0.00029652,2]
[310272590,1704433844460,-915.35175188,0.00029652,2]
[310272591,1704433844485,-461.89461701,0.00029652,2]
[310272592,1704433844497,-667.95766396,0.00029652,2]
[310272602,1704433845981,-552.803407,0.00022997,2]
[310272603,1704433845994,-319.290005,0.00022997,2]
[310272604,1704433846007,-629.9664999,0.00022997,2]
[310272605,1704433846020,-1494.68906237,0.00022997,2]
[310272606,1704433846372,-2062.26184232,0.00029652,2]
[310272608,1704433846394,-2581.55187985,0.00029652,2]
[310272610,1704433846406,-22620.97509184,0.00029652,2]
[310272611,1704433846417,-35048.7527446,0.00029652,2]
[310272613,1704433846436,-342.01478654,0.00029652,2]
[310272615,1704433846448,-943.63399615,0.00029652,2]
[310272617,1704433846460,-997.6565351,0.00029652,2]
[310272619,1704433846471,-1283.5987171,0.00029652,2]
[310272622,1704433846487,-404.04653892,0.00029652,2]
[310272623,1704433846551,-2031.00261675,0.00029652,2]
[310272624,1704434439757,306.49118288,0.000192,2]
[310272625,1704434536445,384.0,0.00020594,2]
[310272626,1704434559270,166.74,0.00022241,2]
[310272627,1704434578146,311.24,0.00022241,2]
[310272628,1704434772774,738.74,0.00022469,2]
[310272634,1704434968444,364.8,0.00020661,2]
[310272668,1704435035709,-523.28163115,0.00022678,2]
[310272669,1704435035719,-2996.74897427,0.00022679,2]
[310272670,1704435035729,-418.39436793,0.00022679,2]
[310272671,1704435035739,-304.7988,0.00022798,2]
[310272672,1704435035749,-468.3208,0.00022798,2]
[310272673,1704435035758,-226.4504629,0.00022798,2]
[310272684,1704435038349,-3000.1229371,0.00022798,2]
[310272685,1704435038359,-18059.4457,0.00022799,2]
[310272686,1704435038369,-171.90870093,0.00022799,2]
[310272687,1704435038378,-176.48871206,0.00022799,2]
[310272688,1704435038387,-178.78836325,0.00022799,2]
[310272689,1704435038397,-3161.11496061,0.00022799,2]
[310272690,1704435038406,-171.90870092,0.00022808,2]
[310272691,1704435038415,-171.90870092,0.00022817,2]
[310272692,1704435038425,-171.90870092,0.00022827,2]
[310272693,1704435038435,-171.90870092,0.00022836,2]
[310272694,1704435038444,-171.90870092,0.00022845,2]
[310272695,1704435038453,-171.90870092,0.00022854,2]
[310272696,1704435038462,-171.90870092,0.00022863,2]
[310272697,1704435038471,-171.90870092,0.00022872,2]
[310272698,1704435038480,-171.90870092,0.00022882,2]
[310272699,1704435038490,-185.79217391,0.00022888,2]
[310272700,1704435038500,-171.90870092,0.00022891,2]
[310272701,1704435038514,-3791.06972333,0.00022896,4]
[310272702,1704435038524,-155.43902243,0.00022896,2]
[310272703,1704435038534,-273.37604111,0.00022896,2]
[310272704,1704435038544,-249.39139602,0.00022896,2]
[310272705,1704435038554,-156.13749558,0.00022896,2]
[310272706,1704435038563,-275.32423741,0.00022896,2]
[310272707,1704435038572,-222.82281867,0.00022896,2]
[310272708,1704435038581,-155.78907433,0.00022896,2]
[310272709,1704435038591,-640.04938049,0.00022896,2]
[310272710,1704435038601,-155.93341944,0.00022897,2]
[310272711,1704435038610,-2876.66433714,0.00022897,2]
[310272712,1704435038619,-155.61427239,0.00022897,2]
[310272713,1704435038629,-290.97925018,0.00022897,2]
[310272715,1704435038638,-990.53032242,0.00022897,2]
[310272717,1704435038648,-236.80896425,0.00022897,2]
[310272719,1704435038657,-221.76665104,0.00022897,2]
[310272721,1704435038666,-187.92884479,0.00022897,2]
[310272723,1704435038679,-279.53720518,0.00022897,2]
[310272725,1704435038691,-158.25999424,0.00022897,2]
[310272727,1704435038700,-164.7616955,0.00022897,2]
[310272729,1704435038709,-1020.98738794,0.00022897,2]
[310272731,1704435038719,-742.32650074,0.00022897,2]
[310272733,1704435038729,-4611.87269733,0.00022897,2]
[310272735,1704435038738,-1387.13372535,0.00022897,2]
[310272736,1704435038747,-659106.82425153,0.00022898,2]
[310272743,1704435038812,-395157.09722227,0.00022898,2]
[310272745,1704435038822,-7500.0,0.00022899,2]
[310272747,1704435038831,-500.0,0.00022899,2]
[310272749,1704435038841,-245000.0,0.00022899,2]
[310272751,1704435038850,-1000.0,0.00022899,2]
[310272753,1704435038859,-161.0152,0.000229,2]
[310272755,1704435038869,-1597.0685,0.000229,2]
[310272757,1704435038879,-287.5205,0.000229,2]
[310272759,1704435038889,-171.90870092,0.000229,2]
[310272761,1704435038898,-176.48871205,0.000229,2]
[310272763,1704435038907,-253.37928636,0.000229,2]
[310272765,1704435038916,-603.10220536,0.000229,2]
[310272767,1704435038926,-163.42793108,0.000229,6]
[310272768,1704435038936,-2685.95163244,0.000229,2]
[310272770,1704435038946,-214.20840639,0.000229,2]
[310272772,1704435038955,-364.8,0.00022924,2]
[310272774,1704435038964,-150.0,0.00022999,2]
[310272776,1704435038974,-150.0,0.00022999,2]
[310272778,1704435038983,-150.0,0.00022999,2]
[310272780,1704435038992,-150.0,0.00022999,2]
[310272782,1704435039001,-150.0,0.00022999,2]
[310272784,1704435039010,-150.0,0.00022999,2]
[310272786,1704435039020,-150.0,0.00022999,2]
[310272788,1704435039029,-150.0,0.00022999,2]
[310272790,1704435039038,-150.0,0.00022999,2]
[310272792,1704435039047,-150.0,0.00022999,2]
[310272794,1704435039056,-150.0,0.00022999,2]
[310272796,1704435039065,-150.0,0.00022999,2]
[310272798,1704435039074,-150.0,0.00022999,2]
[310272799,1704435039084,-5351212.08286677,0.00023,2]
[310272802,1704435039096,-684120.76173192,0.00023,2]
[310272804,1704435039107,-578914.19288253,0.00023,2]
[310272958,1704435040689,-250.5,0.00023,2]
[310272971,1704435040807,-4382.23209643,0.00023,2]
[310272973,1704435040819,-1104.43424814,0.00023,2]